[Event "FTX Crypto Cup MCCT 2022"]
[Site "Miami"]
[Date "2022.08.11"]
[Round "2.2"]
[White "Le, Quang Liem"]
[Black "Firouzja, Alireza"]
[Result "0-1"]
[ECO "D41"]
[WhiteElo "2722"]
[BlackElo "2793"]
[Annotator "TA"]
[PlyCount "60"]
[EventDate "2022.08.10"]
[EventType "tourn"]
[EventCountry "USA"]
[SourceTitle "playchess.com"]
[Source "ChessBase"]
[SourceQuality "1"]
[TimeControl "900+10"]

{[%evp 11,60,29,20,31,35,1,25,43,33,28,48,8,11,16,24,12,12,12,12,12,20,-70,-51,-56,-54,-129,-97,-154,-165,-144,-138,-177,-175,-182,-178,-324,-262,-250,-225,-561,-564,-542,-368,-620,-589,-585,-569,-650,-654,-715,-597]} 1. d4 {[%emt 0:00:00] Giri,Anish} Nf6 {[%emt 0:00:00]} 2. c4 {[%emt 0:00:03]} e6 {[%emt 0:00:02]} 3. Nf3 {[%emt 0:00:03]} d5 {[%emt 0:00:01]} 4. Nc3 {[%emt 0:00:01]} c5 {[%emt 0:00:41]} 5. cxd5 {[%emt 0:00:14]} cxd4 {[%emt 0:00:03]} 6. Qxd4 {[%emt 0:00:04]} exd5 {[%emt 0:00:02]} 7. e4 {[%emt 0:00:28] D41: Queen's Gambit Declined: Semi-Tarrasch with 5 cxd5.} dxe4 $1 {[%emt 0:00:08][%mdl 4] is now more promising than 7...Nc6.} 8. Qxd8+ {[%emt 0:00:02]} Kxd8 {[%emt 0:00:01]} 9. Ng5 {[%emt 0:00:00][%csl LRe4,LRf7] White has an edge.} Be6 {[%emt 0:00:01]} 10. Nxe6+ {[%emt 0:00:17]} fxe6 {[%emt 0:00:02]} 11. Bd2 {[%emt 0:00:11] [#]} Nbd7 $5 $146 {[%emt 0:00:56][%mdl 8] An interesting novelty.} ({Predecessor:} 11... Nc6 12. O-O-O Ke8 13. Bb5 Rc8 14. Rhe1 Kf7 15. Kb1 Nd4 16. Bf1 Be7 17. Nxe4 Nxe4 18. Rxe4 {1-0 (61) Giri,A (2764)-Le,Q (2709) chess24.com INT 2020 CBM 200 [Giri,Anish]}) 12. g3 {[%emt 0:02:11]} Rc8 {[%emt 0:04:26]} 13. Bg2 {[%emt 0:00:17]} Bb4 {[%emt 0:00:02]} 14. Nxe4 {[%emt 0:02:46]} Bxd2+ {[%emt 0:00:04]} 15. Nxd2 {[%emt 0:00:02]} Ke7 {[%emt 0:00:14]} 16. Ke2 {[%emt 0:03:16]} (16. Bxb7 $11 Rc2 17. Nb3) 16... Rc2 $15 {[%emt 0:00:35]} 17. b3 {[%emt 0:00:08]} Rhc8 $1 {[%emt 0:00:56]} 18. Bxb7 {[%emt 0:01:14]} ({White should play} 18. Rhd1 $15) 18... R8c7 {[%emt 0:00:02]} 19. Bg2 {[%emt 0:00:04] [#]} (19. Kd1 $142) 19... Ne5 $1 $17 {[%emt 0:02:47][%mdl 1024] Black has strong compensation.} 20. Rhd1 {[%emt 0:01:53]} Rd7 {[%emt 0:00:04] Black is much more active.} 21. a4 {[%emt 0:01:41]} Nd3 {[%emt 0:00:42]} 22. a5 {[%emt 0:00:30]} Ng4 {[%emt 0:03:15][%csl LRf2,LRh2] Pair of Knights!} 23. Be4 {[%emt 0:00:44]} (23. Bf3 {only move.} Ngxf2 24. Rf1) 23... Ngxf2 $19 {[%emt 0:00:11]} 24. Bxd3 {[%emt 0:01:55]} Nxd3 {[%emt 0:00:00]} 25. Ra4 $2 {[%emt 0:00:05]} (25. Rab1 {nothing else works.}) 25... Nb2 $1 {[%emt 0:01:27][%csl LRa4,LRd1]} 26. Ra2 {[%emt 0:00:05]} e5 {[%emt 0:00:01]} 27. Kf3 $2 {[%emt 0:01:08]} (27. b4) 27... Rdxd2 {[%emt 0:00:28] Black is clearly winning.} 28. Rxd2 {[%emt 0:00:02]} Rxd2 {[%emt 0:00:01]} 29. b4 {[%emt 0:00:00]} Nc4 {[%emt 0:00:09] [#] aiming for ...e4+.} 30. Ra4 {[%emt 0:00:14]} Nd6 {[%emt 0:00:06] Weighted Error Value: White=0.54/Black=0.10 (very precise)} 0-1

[Event "FTX Crypto Cup MCCT 2022"]
[Site "Miami"]
[Date "2022.08.11"]
[Round "2.2"]
[White "Niemann, Hans Moke"]
[Black "Carlsen, Magnus"]
[Result "0-1"]
[ECO "C07"]
[WhiteElo "2688"]
[BlackElo "2864"]
[Annotator "TA"]
[PlyCount "108"]
[EventDate "2022.08.10"]
[EventType "tourn"]
[EventCountry "USA"]
[SourceTitle "playchess.com"]
[Source "ChessBase"]
[SourceQuality "1"]
[TimeControl "900+10"]

{[%evp 14,108,7,22,16,8,16,16,16,18,29,17,36,-19,-16,-29,-22,-72,-77,-71,-70,-74,-69,-72,-73,-71,-71,-76,-76,-83,-83,-89,-89,-89,-89,-89,-83,-85,-83,-89,-86,-85,-76,-89,-89,-89,-85,-91,-76,-76,-76,-76,-75,-108,-93,-93,-93,-167,-166,-214,-202,-210,-202,-189,-189,-187,-174,-302,-301,-352,-337,-372,-342,-356,-387,-510,-497,-491,-508,-492,-472,-863,-631,-606,-589,-2517,-2517,-1862,-1749,-2698,-1666,-29979,-29980,-29980,-29981,-29978,-29979]} 1. e4 {[%emt 0:00:00]} e6 {[%emt 0:00:00]} 2. d4 {[%emt 0:00:13]} d5 {[%emt 0:00:03]} 3. Nd2 {[%emt 0:00:20]} c5 {[%emt 0:00:22]} 4. Ngf3 {[%emt 0:00:04]} cxd4 {[%emt 0:00:05]} 5. Nxd4 {[%emt 0:00:04]} Nc6 {[%emt 0:00:59]} 6. Bb5 {[%emt 0:00:05]} Bd7 {[%emt 0:00:01]} 7. Nxc6 {[%emt 0:00:01]} bxc6 {[%emt 0:00:01]} 8. Bd3 {[%emt 0:00:02]} Bd6 {[%emt 0:00:18] C07: French Tarrasch: 3...c5, 4 Ngf3 and 4 exd5 Qxd5.} 9. Qe2 {[%emt 0:00:04]} Ne7 {[%emt 0:01:14] 9...e5 is more advanced technology.} 10. e5 {[%emt 0:01:24]} Bc7 {[%emt 0:00:02] The position is equal.} 11. O-O {[%emt 0:00:02]} c5 $5 {[%emt 0:00:36][%mdl 4] [#] White must now prevent ...c4. An interesting side line.} 12. c4 {[%emt 0:02:20]} Bc6 {[%emt 0:00:01]} 13. Nf3 {[%emt 0:00:36]} (13. b3 $14) 13... dxc4 $11 {[%emt 0:00:10]} 14. Bxc4 {[%emt 0:00:09]} O-O {[%emt 0:00:01] [#]} 15. Be3 $146 {[%emt 0:01:11]} (15. Rd1 $11 {remains equal.} Qb8 16. Be3) ({Predecessor:} 15. Bd3 h6 16. Rd1 Qb8 17. Be3 Bb6 18. Bf4 Ng6 19. Bg3 Qb7 20. Ba6 Qe7 21. Bb5 {1-0 (80) Vavulin,M (2604)-Huzman,A (2552) Moscow 2017}) 15... Bxf3 $17 {[%emt 0:00:04]} 16. Qxf3 {[%emt 0:01:02]} Bxe5 {[%emt 0:00:02]} 17. Bxc5 {[%emt 0:00:45]} Qc7 {[%emt 0:03:34]} (17... Bxh2+ {feels hotter.} 18. Kh1 Bd6 19. Rad1 Nf5) 18. Bxe7 {[%emt 0:00:06]} Qxe7 {[%emt 0:00:01]} 19. Qe2 {[%emt 0:00:15]} Qc7 {[%emt 0:00:06]} 20. g3 {[%emt 0:00:07] [#]} Bxb2 $1 {[%emt 0:00:01]} 21. Rab1 {[%emt 0:00:44]} (21. Rad1 Bf6) 21... Bd4 {[%emt 0:00:08]} 22. Rfc1 {[%emt 0:00:25][%cal Oc4d5]} Rac8 {[%emt 0:00:30]} 23. Qe4 {[%emt 0:00:44]} Qd6 {[%emt 0:00:24]} 24. Kg2 {[%emt 0:00:49]} g6 {[%emt 0:00:11]} 25. Rc2 {[%emt 0:00:29]} Bb6 {[%emt 0:00:20]} 26. Bb3 {[%emt 0:00:24]} Rxc2 {[%emt 0:00:02]} 27. Qxc2 {[%emt 0:00:01]} Qd7 {[%emt 0:00:02]} 28. Qe2 {[%emt 0:00:27]} Rc8 {[%emt 0:00:20]} 29. Rd1 {[%emt 0:00:06]} Qc6+ {[%emt 0:00:17]} 30. Qf3 {[%emt 0:00:06]} Qxf3+ {[%emt 0:00:03]} (30... Qb5 {looks sharper.} 31. Rd2 Rc1 32. Bd1 Kg7) 31. Kxf3 {[%emt 0:00:00][%mdl 4096] Endgame KRB-KRB} Rc3+ {[%emt 0:00:02]} 32. Ke2 {[%emt 0:00:03]} g5 {[%emt 0:00:01]} 33. Rf1 {[%emt 0:00:46]} Kg7 {[%emt 0:00:54] Black is more active.} 34. Rd1 {[%emt 0:00:18]} g4 {[%emt 0:00:04]} 35. h3 {[%emt 0:00:41]} (35. Rd2 $17 {keeps fighting.}) 35... Rf3 $19 {[%emt 0:00:11]} ({And not} 35... gxh3 36. Rh1 $17) 36. Rf1 {[%emt 0:00:23]} (36. hxg4 $142 Rxf2+ 37. Ke1) 36... h5 {[%emt 0:00:00][%cal Bh7h5,Bh5g4][%mdl 32]} 37. hxg4 {[%emt 0:00:10]} hxg4 {[%emt 0:00:02]} 38. Ke1 {[%emt 0:00:36]} a5 {[%emt 0:00:03]} 39. Ke2 {[%emt 0:00:52]} Kf6 {[%emt 0:00:07]} 40. Ke1 {[%emt 0:00:15]} (40. Bd1 $142) 40... Ke5 {[%emt 0:00:06]} 41. Ke2 {[%emt 0:00:03]} f5 {[%emt 0:00:06]} 42. Ke1 {[%emt 0:01:03]} Kd6 {[%emt 0:00:09]} 43. Ke2 {[%emt 0:00:03]} e5 {[%emt 0:00:15]} 44. Bg8 {[%emt 0:00:39]} Bd4 {[%emt 0:00:10]} 45. Bf7 {[%emt 0:00:43]} e4 {[%emt 0:00:05]} 46. Bg8 {[%emt 0:01:00]} Ke5 {[%emt 0:00:09][%cal Od4f2] aiming for ...Bxf2!} 47. Bf7 {[%emt 0:00:14]} (47. Ke1 $142) 47... e3 {[%emt 0:00:08]} 48. fxe3 {[%emt 0:00:02]} Rxe3+ {[%emt 0:00:00]} 49. Kf2 {[%emt 0:00:11]} Kf6 {[%emt 0:00:01] And now ...Rf3+ would win.} 50. Bh5 {[%emt 0:00:10]} Kg5 {[%emt 0:00:05]} 51. Rh1 {[%emt 0:00:14]} Re7+ {[%emt 0:00:29]} 52. Kg2 {[%emt 0:00:11]} Re2+ {[%emt 0:00:01] Black mates.} 53. Kf1 {[%emt 0:00:01]} Rf2+ {[%emt 0:00:01]} 54. Ke1 {[%emt 0:00:08]} Rxa2 {[%emt 0:00:00] Weighted Error Value: White=0.65/Black=0.16 (very precise)} 0-1

[Event "FTX Crypto Cup MCCT 2022"]
[Site "Miami"]
[Date "2022.08.11"]
[Round "2.3"]
[White "Carlsen, Magnus"]
[Black "Niemann, Hans Moke"]
[Result "1-0"]
[ECO "D00"]
[WhiteElo "2864"]
[BlackElo "2688"]
[Annotator "TA"]
[PlyCount "143"]
[EventDate "2022.08.10"]
[EventType "tourn"]
[EventCountry "USA"]
[SourceTitle "playchess.com"]
[Source "ChessBase"]
[SourceQuality "1"]
[TimeControl "900+10"]

{[%evp 9,143,25,25,28,62,-20,-3,-38,-31,-33,-29,-33,-17,-20,-20,-81,-10,-10,0,-80,-43,-56,0,-59,-74,-108,-125,-117,-119,-112,-81,-73,-75,-83,-44,-64,-11,-18,0,0,3,0,23,18,43,41,55,50,47,56,93,71,68,50,86,86,113,77,108,24,75,64,163,140,158,153,172,153,175,117,121,112,189,182,188,189,260,190,220,184,229,178,175,188,162,151,256,283,277,270,322,331,378,266,242,189,566,558,565,568,564,552,458,221,797,787,763,650,871,871,864,835,758,348,316,308,386,375,437,431,795,785,29976,29977,29976,29977,29977,29978,29979,29980,29984,29985,29984,29985,29985,29986]} 1. a3 {[%emt 0:00:00]} d5 {[%emt 0:00:00]} 2. d4 {[%emt 0:00:05]} Nf6 {[%emt 0:00:38]} 3. Nf3 {[%emt 0:00:02]} Bf5 {[%emt 0:00:57]} 4. c4 {[%emt 0:00:17]} c6 {[%emt 0:00:23]} 5. Nc3 {[%emt 0:00:31]} e6 {[%emt 0:01:37]} 6. Nh4 {[%emt 0:00:03] [#] D00: 1 d4 d5: Unusual lines.} Bg4 $146 {[%emt 0:02:01]} ({Predecessor:} 6... Bg6 7. Nxg6 hxg6 8. e3 Nbd7 9. c5 e5 10. Be2 Qc7 11. h3 Be7 12. b4 Nf8 {½-½ (30) Calva Caballero,I-De los Santos Coello,J ICCF email 2018}) 7. f3 {[%emt 0:00:42]} ({White should play} 7. Qb3 $14) 7... Bh5 $1 $11 {[%emt 0:00:30]} 8. cxd5 {[%emt 0:00:15] The position is equal.} cxd5 {[%emt 0:01:52]} 9. g3 {[%emt 0:00:13]} Nc6 {[%emt 0:00:13]} 10. Ng2 {[%emt 0:00:04]} Qb6 {[%emt 0:00:27]} 11. e3 {[%emt 0:00:16]} Bd6 {[%emt 0:01:55]} 12. Nf4 {[%emt 0:00:20]} (12. Be2 $11) 12... Bg6 {[%emt 0:00:18]} (12... Bxf4 $17 13. gxf4 Ne4 $1) 13. Nxg6 {[%emt 0:00:45]} hxg6 {[%emt 0:00:01]} 14. Kf2 {[%emt 0:00:01]} (14. f4 $1 $11) 14... a6 {[%emt 0:00:46]} 15. Kg2 {[%emt 0:01:35]} O-O {[%emt 0:00:18]} (15... Ne7 $15) 16. g4 {[%emt 0:00:11]} ({Better is} 16. f4 $11) 16... e5 $1 $15 {[%emt 0:02:12]} 17. g5 {[%emt 0:00:31]} exd4 {[%emt 0:00:57]} 18. exd4 {[%emt 0:02:06]} (18. Na4 Qc7 $1 19. gxf6 b5) 18... Nh5 {[%emt 0:00:07]} 19. Nxd5 {[%emt 0:00:01]} Qxd4 {[%emt 0:00:03]} 20. Qxd4 {[%emt 0:00:58]} Nxd4 {[%emt 0:00:00]} 21. Rb1 {[%emt 0:00:01]} Rfd8 {[%emt 0:00:58]} 22. Bd3 {[%emt 0:00:04][%cal Bf1d3,Bd3e4,Be4b7][%mdl 32]} Rac8 {[%emt 0:00:30]} (22... Be5 $15 23. Be4 Ne2) 23. Rd1 $11 {[%emt 0:00:33]} ({Reject} 23. Be3 Bxa3 $1 24. Be4 (24. bxa3 Rxd5 25. Be4 Nf5 $17) 24... Nf5 $1 25. bxa3 Rxd5 $1 $15) 23... Ne6 {[%emt 0:00:25]} 24. Be4 {[%emt 0:00:09]} Kf8 {[%emt 0:00:35]} 25. Bd2 {[%emt 0:01:16]} Nhf4+ {[%emt 0:00:47]} 26. Nxf4 {[%emt 0:00:02]} Nxf4+ {[%emt 0:00:03]} 27. Kf1 {[%emt 0:00:08]} ({But not} 27. Bxf4 Bxf4 28. h4 b6 $11) 27... b6 {[%emt 0:00:27]} 28. Bb7 {[%emt 0:00:09][%csl LRa6,LRc8]} Rb8 {[%emt 0:00:01]} 29. Bxa6 {[%emt 0:00:01]} Ne6 {[%emt 0:00:16]} 30. Bc4 {[%emt 0:03:18]} Nd4 {[%emt 0:00:01]} 31. Kg2 {[%emt 0:00:04]} Rbc8 {[%emt 0:00:01]} 32. Ba6 {[%emt 0:00:06]} Rc7 {[%emt 0:00:48]} 33. Bc3 {[%emt 0:00:05]} Ne6 {[%emt 0:00:08]} 34. a4 {[%emt 0:01:46]} (34. h4 $1 $16) 34... Ke7 {[%emt 0:00:07] [#]} (34... Nxg5 $11 {keeps the balance.} 35. Rd2 Ne6) 35. h4 $1 $16 {[%emt 0:00:20]} Nf4+ {[%emt 0:00:18]} ({Black should try} 35... Rh8 $14) 36. Kf2 {[%emt 0:00:27]} Ne6 {[%emt 0:00:13]} 37. Bb5 {[%emt 0:00:06] This bishop pair is nice.} Rh8 {[%emt 0:00:07] [#]} 38. Rh1 {[%emt 0:00:10]} Bc5+ {[%emt 0:00:01]} 39. Kg3 {[%emt 0:00:08]} (39. Kg2 $18) 39... Bd6+ {[%emt 0:00:03]} 40. Kg2 {[%emt 0:00:04]} Nf4+ {[%emt 0:00:30]} (40... f6 $16) 41. Kf2 $18 {[%emt 0:00:02]} Bc5+ {[%emt 0:00:04]} 42. Kg3 {[%emt 0:00:02]} Ne6 {[%emt 0:00:06]} (42... Nh5+ $142 43. Kh3 Ra8 44. Rhe1+ Kf8) 43. Rbe1 {[%emt 0:00:03] Threatens to win with Bxg7.} Bd6+ {[%emt 0:00:01]} 44. Kg2 {[%emt 0:00:05]} f6 {[%emt 0:00:11]} 45. Re4 {[%emt 0:00:15] Strongly threatening Rhe1.} f5 {[%emt 0:00:11]} 46. Rc4 {[%emt 0:00:16]} Nf4+ {[%emt 0:00:07]} 47. Kf2 {[%emt 0:00:04]} Bc5+ {[%emt 0:00:22] [#]} (47... Rxc4 $16 {keeps fighting.} 48. Bxc4 Bc5+ 49. Kg3 Nh5+ 50. Kh2 Bd6+ 51. Kg2 Nf4+ 52. Kf2 Bc5+ 53. Kg3 Nh5+ 54. Kh3 Nf4+ 55. Kg3) 48. Rxc5 $1 {[%emt 0:00:02][%mdl 512]} Rxc5 {[%emt 0:00:10]} 49. Bb4 {[%emt 0:00:02]} ({Weaker is} 49. Bxg7 Rc2+ 50. Ke3 Nd5+ 51. Kd3 Rhc8 $11) 49... Ne6 {[%emt 0:00:13]} 50. Bxc5+ {[%emt 0:00:18]} Nxc5 {[%emt 0:00:00][%mdl 4096] Endgame KRB-KRN} 51. b4 {[%emt 0:00:01]} Ne6 {[%emt 0:00:07]} 52. Bc4 {[%emt 0:00:11] And now Re1 would win.} Nd4 $2 {[%emt 0:00:11]} (52... Nf4 {is more resistant.} 53. Ke3 Ng2+ 54. Kd4 Rd8+ 55. Kc3 Ra8) 53. Re1+ {[%emt 0:01:29]} Kd6 {[%emt 0:00:01]} 54. Rd1 {[%emt 0:00:01]} Ke5 {[%emt 0:00:01]} 55. f4+ {[%emt 0:00:02]} Ke4 {[%emt 0:00:04]} 56. Bf1 {[%emt 0:00:15]} (56. Kg3 $142 {Black must now prevent Re1+.} Ke3 57. Rd3+ Ke4 58. Rc3) 56... Kd5 $2 {[%emt 0:00:16]} (56... Nb3 57. Kg3 Rc8 58. Bg2+ Ke3) 57. a5 {[%emt 0:00:02]} bxa5 {[%emt 0:00:25]} 58. bxa5 {[%emt 0:00:01][%cal Bb4a5,Ba5a6][%mdl 32]} Rb8 {[%emt 0:00:07]} 59. a6 {[%emt 0:00:05]} Kc5 {[%emt 0:00:23]} 60. Rc1+ {[%emt 0:00:06]} Kd6 {[%emt 0:00:24]} 61. Ke3 {[%emt 0:00:13]} (61. a7 $142 Ra8 62. Ke3) 61... Nc6 {[%emt 0:00:08]} 62. Rc3 {[%emt 0:00:29] Against Rb3} Na7 {[%emt 0:00:04]} 63. Bc4 {[%emt 0:00:21]} Re8+ {[%emt 0:00:11]} 64. Kf3 {[%emt 0:00:07]} Re7 {[%emt 0:00:02]} (64... Nc6 $142 65. Bf7 Ra8) 65. Re3 {[%emt 0:00:20] White threatens Rxe7 and mate.} Rd7 {[%emt 0:00:23]} 66. Rd3+ {[%emt 0:00:03] White mates.} Kc7 {[%emt 0:00:01]} 67. Rxd7+ {[%emt 0:00:00]} Kxd7 {[%emt 0:00:00]} 68. Bf7 {[%emt 0:00:02]} Kc6 {[%emt 0:00:04]} 69. Bxg6 {[%emt 0:00:01]} Kb6 {[%emt 0:00:01]} 70. h5 {[%emt 0:00:06]} Nc6 {[%emt 0:00:09]} 71. h6 {[%emt 0:00:01]} gxh6 {[%emt 0:00:07]} 72. gxh6 {[%emt 0:00:00] Weighted Error Value: White=0.27 (precise) /Black=0.33} 1-0

[Event "FTX Crypto Cup MCCT 2022"]
[Site "Miami"]
[Date "2022.08.11"]
[Round "2.3"]
[White "Firouzja, Alireza"]
[Black "Le, Quang Liem"]
[Result "1-0"]
[ECO "C78"]
[WhiteElo "2793"]
[BlackElo "2722"]
[Annotator "TA"]
[PlyCount "169"]
[EventDate "2022.08.10"]
[EventType "tourn"]
[EventCountry "USA"]
[SourceTitle "playchess.com"]
[Source "ChessBase"]
[SourceQuality "1"]
[TimeControl "900+10"]

{[%evp 15,169,36,37,0,18,17,0,0,14,15,41,44,38,29,22,22,75,76,76,75,75,76,77,77,78,84,100,59,61,4,40,29,33,30,27,27,52,0,34,0,0,0,0,0,209,218,218,219,219,225,225,220,225,225,225,225,225,225,218,206,404,393,322,320,289,236,650,616,593,568,1559,1671,1241,996,2112,1985,2176,2116,1901,1714,1131,861,999,925,925,909,883,876,822,145,145,145,145,145,861,855,649,649,623,616,616,616,616,616,602,602,602,588,5197,125,125,92,29967,29968,29968,29969,29969,29968,29968,0,29969,29970,29970,29971,29971,29972,29972,29973,29972,29973,29973,29972,29970,29968,29966,29967,29977,29978,29984,29985,29985,29983,29983,29981,29981,29982,29982,29983,29983,29984,29986,29985,29985,29986,29986,4134]} 1. e4 {[%emt 0:00:00]} e5 {[%emt 0:00:00]} 2. Nf3 {[%emt 0:00:02]} Nc6 {[%emt 0:00:01]} 3. Bb5 {[%emt 0:00:01]} a6 {[%emt 0:00:01]} 4. Ba4 {[%emt 0:00:01]} Nf6 {[%emt 0:00:01]} 5. O-O {[%emt 0:00:02]} b5 {[%emt 0:00:02]} 6. Bb3 {[%emt 0:00:02]} Bc5 {[%emt 0:00:01]} 7. c3 {[%emt 0:00:19]} d6 {[%emt 0:00:02]} 8. d4 {[%emt 0:00:02]} Bb6 {[%emt 0:00:01]} 9. Re1 {[%emt 0:00:04] 9.Be3 is the modern continuation. C78: Ruy Lopez: Archangelsk and Möller Defences.} (9. a4 $5 {[%cal Ra4b5]}) 9... O-O {[%emt 0:00:16]} 10. Bg5 {[%emt 0:00:04]} h6 {[%emt 0:00:23]} 11. Bh4 {[%emt 0:00:02] The position is equal.} exd4 {[%emt 0:03:42]} 12. Bd5 {[%emt 0:00:09]} Bd7 {[%emt 0:00:34]} 13. cxd4 {[%emt 0:00:07]} g5 {[%emt 0:01:40] [#]} 14. Bxc6 $146 {[%emt 0:00:11]} ({Predecessor:} 14. Nxg5 Nxd5 15. exd5 Nxd4 16. Qh5 Nf5 17. Re4 hxg5 18. Bxg5 f6 19. Bh6 Ng7 20. Bxg7 Kxg7 21. Rg4+ Bxg4 22. Qxg4+ {½-½ (22) Nytra,O (1953)-Walowy,B (2054) Czech Republic 2018}) 14... Bxc6 {[%emt 0:00:00]} 15. Qc1 {[%emt 0:01:52] And now Nxg5 would win.} Bxe4 {[%emt 0:02:01] [#]} (15... Ba5 $11 {remains equal.} 16. Re2 Bb7 17. Nxg5 Nxe4) 16. Nxg5 $1 $16 {[%emt 0:00:04]} hxg5 {[%emt 0:00:16]} 17. Qxg5+ {[%emt 0:00:08]} Bg6 {[%emt 0:00:01]} 18. Qxf6 {[%emt 0:00:07]} Qxf6 {[%emt 0:00:14]} 19. Bxf6 {[%emt 0:00:02]} Rfe8 {[%emt 0:00:20][%cal Re8e1]} 20. Nc3 {[%emt 0:00:05]} c6 {[%emt 0:00:55] Prevents Nd5.} 21. d5 {[%emt 0:02:49]} c5 {[%emt 0:00:09]} 22. Ne2 {[%emt 0:00:15]} (22. Rac1 $14) 22... Re4 {[%emt 0:01:37]} (22... Ba5 $5 {[%cal Ra5e1]} 23. Bc3 b4 $14) 23. f3 {[%emt 0:01:55]} c4+ {[%emt 0:00:04]} 24. Kf1 {[%emt 0:00:07]} Re3 {[%emt 0:00:15]} 25. Nf4 {[%emt 0:00:04]} Bf5 {[%emt 0:01:34]} 26. Re2 {[%emt 0:05:33]} (26. Bc3 $14) 26... Rae8 {[%emt 0:00:40]} 27. Rae1 {[%emt 0:00:23]} b4 {[%emt 0:00:18] Prevents Bc3.} 28. Rxe3 {[%emt 0:00:22]} Rxe3 {[%emt 0:00:00]} 29. Rc1 {[%emt 0:00:33] Prevents c3.} Bd3+ {[%emt 0:02:34]} (29... Bd7 $1 $11 {and Black has nothing to worry.} 30. Ne2 (30. Rxc4 $2 Bb5 $19) 30... Bb5) 30. Nxd3 $18 {[%emt 0:00:05]} cxd3 {[%emt 0:00:00][%mdl 4096] Endgame KRB-KRB} 31. Re1 {[%emt 0:00:34] Inhibits Re2.} d2 {[%emt 0:01:32][%csl Ge3][%cal Rd2e1]} 32. Rd1 {[%emt 0:00:03]} b3 {[%emt 0:00:04]} 33. axb3 {[%emt 0:01:52]} Ba5 {[%emt 0:00:01] [#]} 34. Bc3 $1 {[%emt 0:00:02]} Bxc3 {[%emt 0:00:01]} 35. bxc3 {[%emt 0:00:00]} Rxc3 {[%emt 0:00:00]} 36. Rxd2 {[%emt 0:00:05]} Rxb3 {[%emt 0:00:03] KR-KR} 37. Ra2 {[%emt 0:00:09]} Rb6 {[%emt 0:00:32]} (37... Rb5 38. Rxa6 Rxd5) 38. Kf2 {[%emt 0:00:13]} Kg7 {[%emt 0:00:02]} 39. g4 {[%emt 0:00:59]} Kf6 {[%emt 0:00:11]} 40. f4 {[%emt 0:00:44]} Rb5 $2 {[%emt 0:00:02]} (40... Kg6 41. Kg3 f5) 41. Rxa6 {[%emt 0:00:05]} Rxd5 {[%emt 0:00:01]} 42. h4 {[%emt 0:00:14][%cal Bh2h4,Bh4h5][%mdl 32] h5 is the strong threat.} Rd1 {[%emt 0:00:04]} 43. h5 {[%emt 0:00:06]} Ke6 {[%emt 0:00:04]} 44. Ra2 {[%emt 0:00:46]} Kf6 {[%emt 0:00:32]} 45. Ra5 {[%emt 0:00:19]} Rh1 {[%emt 0:00:14]} 46. Kg2 {[%emt 0:00:04]} Rh4 {[%emt 0:00:02]} 47. Kg3 {[%emt 0:00:05]} Rh1 {[%emt 0:00:01]} 48. Ra2 {[%emt 0:00:17]} d5 {[%emt 0:00:28]} 49. Ra6+ {[%emt 0:00:12]} Ke7 {[%emt 0:00:12]} 50. h6 {[%emt 0:00:43]} d4 {[%emt 0:00:02]} 51. Kf3 {[%emt 0:00:15] aiming for g5.} Rh3+ {[%emt 0:00:43]} 52. Ke4 $2 {[%emt 0:00:12]} (52. Ke2 $18 Kf8 53. Ra8+ Ke7 54. g5) 52... d3 $16 {[%emt 0:00:01]} 53. g5 {[%emt 0:00:03][%cal Bg4g5,Bg5g6][%mdl 32]} d2 {[%emt 0:00:04]} 54. Ra1 {[%emt 0:00:02] Black must now prevent Rd1.} Ke6 $2 {[%emt 0:00:49][%mdl 8192] [#]} (54... Rh2 $16 55. Rb1 Kf8) 55. Rd1 $1 $18 {[%emt 0:00:14]} Rh2 {[%emt 0:00:13]} 56. f5+ {[%emt 0:00:23]} Ke7 {[%emt 0:00:04]} 57. Ke3 {[%emt 0:00:11]} f6 {[%emt 0:00:04]} 58. g6 {[%emt 0:00:02] Threatening mate with h7.} Rxh6 {[%emt 0:00:05]} 59. Rxd2 {[%emt 0:00:00] Intending Rb2 and mate.} Rh5 {[%emt 0:00:30]} 60. Kf4 {[%emt 0:00:05]} Rh4+ {[%emt 0:00:02]} 61. Kf3 {[%emt 0:00:08] White wants to mate with Re2+.} Rh5 {[%emt 0:00:13]} 62. Re2+ $2 {[%emt 0:00:11]} (62. Kg4 $18 {is the precise move to win.} Rg5+ 63. Kf4) 62... Kf8 $16 {[%emt 0:00:02]} 63. Kg4 {[%emt 0:00:03]} Rg5+ $2 {[%emt 0:00:08][%mdl 8192]} (63... Rh1 $16 64. Re6 Kg7 65. Re7+ Kg8) 64. Kf4 {[%emt 0:00:02]} Rg1 {[%emt 0:00:04]} 65. Re6 {[%emt 0:00:03]} Rf1+ {[%emt 0:00:04]} 66. Kg4 {[%emt 0:00:02]} Rg1+ {[%emt 0:00:01]} 67. Kf4 {[%emt 0:00:15]} Rf1+ {[%emt 0:00:02]} 68. Ke4 {[%emt 0:00:14] White mates.} Re1+ {[%emt 0:00:06]} 69. Kd5 {[%emt 0:00:02]} Rd1+ {[%emt 0:00:02]} 70. Kc6 {[%emt 0:00:01]} Kg7 {[%emt 0:00:19]} 71. Re7+ {[%emt 0:00:03]} Kg8 {[%emt 0:00:06]} 72. Rf7 {[%emt 0:00:22]} Ra1 {[%emt 0:00:01]} 73. Kd7 {[%emt 0:00:45]} Ra7+ {[%emt 0:00:05]} 74. Ke8 {[%emt 0:00:03]} Ra5 {[%emt 0:01:10]} 75. Rxf6 {[%emt 0:00:04]} Re5+ {[%emt 0:00:04]} 76. Kd7 {[%emt 0:00:02]} Kg7 {[%emt 0:00:01]} 77. Rf7+ {[%emt 0:00:02]} Kg8 {[%emt 0:00:01]} 78. Kd6 {[%emt 0:00:05]} Ra5 {[%emt 0:00:04]} 79. Ke6 {[%emt 0:00:04]} Ra6+ {[%emt 0:00:02]} 80. Ke5 {[%emt 0:00:01]} Ra5+ {[%emt 0:00:07]} 81. Kf6 {[%emt 0:00:02]} Ra6+ {[%emt 0:00:08]} 82. Kg5 {[%emt 0:00:02]} Ra5 {[%emt 0:00:09]} 83. Rb7 {[%emt 0:00:02]} Rc5 {[%emt 0:00:04]} 84. Kh6 {[%emt 0:00:06]} Rxf5 {[%emt 0:00:09]} 85. Rb8+ {[%emt 0:00:01] Weighted Error Value: White=0.27 (precise) /Black=0.34} 1-0